{"text_format":"1","workbook":"xlsx","n_sheets":2,"sheets":["Bestellliste Sektionen","Preis"],"not_rendered":{"charts":0,"images":0,"macros":1,"external_links":0,"defined_names":3,"comments":0,"pivot_tables":0},"unopened":[],"bounds":{"document_bytes":16777216,"sheet_cells":100000,"rows_first":2000,"rows_last":500,"rows_between":2000,"halvings":0,"cell_chars":16384,"cell_head_chars":4096},"cells_cut":0,"cells_raw":0,"read":"whole","date_system":"1900"}

{"sheet":"Bestellliste Sektionen","index":0,"n_rows":33,"n_cols":28,"rows_kept":33,"cut":false,"hidden":false,"merged":[[0,0,0,7],[2,13,2,27],[1,26,1,27],[4,13,4,27],[0,24,0,25],[0,10,0,12],[0,13,0,22],[1,22,1,25],[1,18,1,20],[2,0,2,8],[1,13,1,14],[3,9,3,12],[3,13,3,27],[1,0,1,7],[2,9,2,12],[3,0,3,1],[5,2,5,6],[6,9,6,12],[6,13,6,27],[9,17,10,17],[3,2,3,6],[9,2,10,2],[9,3,10,3],[4,2,4,6],[4,9,4,12],[3,7,3,8],[9,6,10,6],[6,2,6,6],[7,2,7,6],[7,13,7,27],[5,13,5,27],[7,9,7,12],[9,0,10,0],[9,24,9,27],[9,19,10,19],[9,14,10,14],[9,4,10,4],[9,5,10,5],[9,7,10,7],[9,12,10,12],[9,1,10,1],[9,10,10,10],[9,18,10,18],[9,8,10,9],[9,13,10,13],[5,9,5,12],[9,16,10,16],[9,22,9,23],[9,15,10,15],[9,21,10,21],[9,11,10,11],[9,20,10,20]]}
["BKAV Verbandsschiessen 2024",null,null,null,null,null,null,null,null,null,"Sektion",null,null,null,null,null,null,null,null,null,null,null,null,"Nr.",null,null,"Kat: "]
["Armbrustschützen Buchegg"]
[null,null,null,null,null,null,null,null,null,"Funktionär"]
["Gruppe",null,"Gruppenname",null,null,null,null,null,null,"Name Vorname"]
[null,1,null,null,null,null,null,null,null,"genaue Adresse"]
[null,2,null,null,null,null,null,null,null,"PLZ / Ort"]
[null,3,null,null,null,null,null,null,null,"Telefon & E-Mail"]
[null,4,null,null,null,null,null,null,null,"Konto         IBAN",null,null,null,"( QR Code)"]
[]
["EASV","Name","Vorname","Jahrgang","Kat. Aufgelegt                             frei","Standblatt","Kehr","Sektion","Gruppe",null,"Auszahlung","Kranz","Kranz ND","Nchwuchsstich","Veteranenstich","Nachdoppel",null,"Final                     Verbandsmeister","Schusszahl","Rangeure","Minuten","Preis","Wunsch",null,"Bestätigung"]
[null,null,null,null,null,null,null,null,null,null,null,null,null,null,null,null,null,null,null,null,null,null,"Datum","Zeit","Datum","von","bis","Scheibe"]
[null,null,null,null," a   f ",null,6,6,6,"Nr.",10,6,6,6,6,2,0,0,null,null,45]
[null,null,null,null,null,null,null,null,null,null,null,null,null,null,null,null,null,null,{"$f":"G13*G$12+H13*H$12+I13*I$12+K13*K$12+L13*L$12+M13*M$12+N13*N$12+O13*O$12+P13*P$12+Q13*Q$12+R13*R$12","v":0},{"$f":"ROUNDUP(S13/10,0)","v":0},{"$f":"T13*15","v":0},{"$f":"IF(D13>2005,F13*Preis!D$3+'Bestellliste Sektionen'!G13*Preis!D$4+'Bestellliste Sektionen'!H13*Preis!D$5+'Bestellliste Sektionen'!I13*Preis!D$6+'Bestellliste Sektionen'!K13*Preis!D$7+'Bestellliste Sektionen'!L13*Preis!D$8+'Bestellliste Sektionen'!M13*Preis!D$9+'Bestellliste Sektionen'!N13*Preis!D$10+'Bestellliste Sektionen'!O13*Preis!D$11+'Bestellliste Sektionen'!P13*Preis!D$12+'Bestellliste Sektionen'!Q13*Preis!D$13+'Bestellliste Sektionen'!R13*Preis!D$14,IF(D13<2004,F13*Preis!B$3+'Bestellliste Sektionen'!G13*Preis!B$4+'Bestellliste Sektionen'!H13*Preis!B$5+'Bestellliste Sektionen'!I13*Preis!B$6+'Bestellliste Sektionen'!K13*Preis!B$7+'Bestellliste Sektionen'!L13*Preis!B$8+'Bestellliste Sektionen'!M13*Preis!B$9+'Bestellliste Sektionen'!N13*Preis!B$10+'Bestellliste Sektionen'!O13*Preis!B$11+'Bestellliste Sektionen'!P13*Preis!B$12+'Bestellliste Sektionen'!Q13*Preis!B$13+'Bestellliste Sektionen'!R13*Preis!B$14,))","v":0}]
[null,null,null,null,null,null,null,null,null,null,null,null,null,null,null,null,null,null,{"$f":"G14*G$12+H14*H$12+I14*I$12+K14*K$12+L14*L$12+M14*M$12+N14*N$12+O14*O$12+P14*P$12+Q14*Q$12+R14*R$12","v":0},{"$f":"ROUNDUP(S14/10,0)","v":0},{"$f":"T14*15","v":0},{"$f":"IF(D14>2001,F14*Preis!D$3+'Bestellliste Sektionen'!G14*Preis!D$4+'Bestellliste Sektionen'!H14*Preis!D$5+'Bestellliste Sektionen'!I14*Preis!D$6+'Bestellliste Sektionen'!K14*Preis!D$7+'Bestellliste Sektionen'!L14*Preis!D$8+'Bestellliste Sektionen'!M14*Preis!D$9+'Bestellliste Sektionen'!N14*Preis!D$10+'Bestellliste Sektionen'!O14*Preis!D$11+'Bestellliste Sektionen'!P14*Preis!D$12+'Bestellliste Sektionen'!Q14*Preis!D$13+'Bestellliste Sektionen'!R14*Preis!D$14,IF(D14<2002,F14*Preis!B$3+'Bestellliste Sektionen'!G14*Preis!B$4+'Bestellliste Sektionen'!H14*Preis!B$5+'Bestellliste Sektionen'!I14*Preis!B$6+'Bestellliste Sektionen'!K14*Preis!B$7+'Bestellliste Sektionen'!L14*Preis!B$8+'Bestellliste Sektionen'!M14*Preis!B$9+'Bestellliste Sektionen'!N14*Preis!B$10+'Bestellliste Sektionen'!O14*Preis!B$11+'Bestellliste Sektionen'!P14*Preis!B$12+'Bestellliste Sektionen'!Q14*Preis!B$13+'Bestellliste Sektionen'!R14*Preis!B$14,))","v":0}]
[null,null,null,null,null,null,null,null,null,null,null,null,null,null,null,null,null,null,0,0,0,{"$f":"IF(D15>2001,F15*Preis!D$3+'Bestellliste Sektionen'!G15*Preis!D$4+'Bestellliste Sektionen'!H15*Preis!D$5+'Bestellliste Sektionen'!I15*Preis!D$6+'Bestellliste Sektionen'!K15*Preis!D$7+'Bestellliste Sektionen'!L15*Preis!D$8+'Bestellliste Sektionen'!M15*Preis!D$9+'Bestellliste Sektionen'!N15*Preis!D$10+'Bestellliste Sektionen'!O15*Preis!D$11+'Bestellliste Sektionen'!P15*Preis!D$12+'Bestellliste Sektionen'!Q15*Preis!D$13+'Bestellliste Sektionen'!R15*Preis!D$14,IF(D15<2002,F15*Preis!B$3+'Bestellliste Sektionen'!G15*Preis!B$4+'Bestellliste Sektionen'!H15*Preis!B$5+'Bestellliste Sektionen'!I15*Preis!B$6+'Bestellliste Sektionen'!K15*Preis!B$7+'Bestellliste Sektionen'!L15*Preis!B$8+'Bestellliste Sektionen'!M15*Preis!B$9+'Bestellliste Sektionen'!N15*Preis!B$10+'Bestellliste Sektionen'!O15*Preis!B$11+'Bestellliste Sektionen'!P15*Preis!B$12+'Bestellliste Sektionen'!Q15*Preis!B$13+'Bestellliste Sektionen'!R15*Preis!B$14,))","v":0}]
[null,null,null,null,null,null,null,null,null,null,null,null,null,null,null,null,null,null,0,0,0,{"$f":"IF(D16>2001,F16*Preis!D$3+'Bestellliste Sektionen'!G16*Preis!D$4+'Bestellliste Sektionen'!H16*Preis!D$5+'Bestellliste Sektionen'!I16*Preis!D$6+'Bestellliste Sektionen'!K16*Preis!D$7+'Bestellliste Sektionen'!L16*Preis!D$8+'Bestellliste Sektionen'!M16*Preis!D$9+'Bestellliste Sektionen'!N16*Preis!D$10+'Bestellliste Sektionen'!O16*Preis!D$11+'Bestellliste Sektionen'!P16*Preis!D$12+'Bestellliste Sektionen'!Q16*Preis!D$13+'Bestellliste Sektionen'!R16*Preis!D$14,IF(D16<2002,F16*Preis!B$3+'Bestellliste Sektionen'!G16*Preis!B$4+'Bestellliste Sektionen'!H16*Preis!B$5+'Bestellliste Sektionen'!I16*Preis!B$6+'Bestellliste Sektionen'!K16*Preis!B$7+'Bestellliste Sektionen'!L16*Preis!B$8+'Bestellliste Sektionen'!M16*Preis!B$9+'Bestellliste Sektionen'!N16*Preis!B$10+'Bestellliste Sektionen'!O16*Preis!B$11+'Bestellliste Sektionen'!P16*Preis!B$12+'Bestellliste Sektionen'!Q16*Preis!B$13+'Bestellliste Sektionen'!R16*Preis!B$14,))","v":0}]
[null,null,null,null,null,null,null,null,null,null,null,null,null,null,null,null,null,null,0,0,0,{"$f":"IF(D17>2001,F17*Preis!D$3+'Bestellliste Sektionen'!G17*Preis!D$4+'Bestellliste Sektionen'!H17*Preis!D$5+'Bestellliste Sektionen'!I17*Preis!D$6+'Bestellliste Sektionen'!K17*Preis!D$7+'Bestellliste Sektionen'!L17*Preis!D$8+'Bestellliste Sektionen'!M17*Preis!D$9+'Bestellliste Sektionen'!N17*Preis!D$10+'Bestellliste Sektionen'!O17*Preis!D$11+'Bestellliste Sektionen'!P17*Preis!D$12+'Bestellliste Sektionen'!Q17*Preis!D$13+'Bestellliste Sektionen'!R17*Preis!D$14,IF(D17<2002,F17*Preis!B$3+'Bestellliste Sektionen'!G17*Preis!B$4+'Bestellliste Sektionen'!H17*Preis!B$5+'Bestellliste Sektionen'!I17*Preis!B$6+'Bestellliste Sektionen'!K17*Preis!B$7+'Bestellliste Sektionen'!L17*Preis!B$8+'Bestellliste Sektionen'!M17*Preis!B$9+'Bestellliste Sektionen'!N17*Preis!B$10+'Bestellliste Sektionen'!O17*Preis!B$11+'Bestellliste Sektionen'!P17*Preis!B$12+'Bestellliste Sektionen'!Q17*Preis!B$13+'Bestellliste Sektionen'!R17*Preis!B$14,))","v":0}]
[null,null,null,null,null,null,null,null,null,null,null,null,null,null,null,null,null,null,0,0,0,{"$f":"IF(D18>2001,F18*Preis!D$3+'Bestellliste Sektionen'!G18*Preis!D$4+'Bestellliste Sektionen'!H18*Preis!D$5+'Bestellliste Sektionen'!I18*Preis!D$6+'Bestellliste Sektionen'!K18*Preis!D$7+'Bestellliste Sektionen'!L18*Preis!D$8+'Bestellliste Sektionen'!M18*Preis!D$9+'Bestellliste Sektionen'!N18*Preis!D$10+'Bestellliste Sektionen'!O18*Preis!D$11+'Bestellliste Sektionen'!P18*Preis!D$12+'Bestellliste Sektionen'!Q18*Preis!D$13+'Bestellliste Sektionen'!R18*Preis!D$14,IF(D18<2002,F18*Preis!B$3+'Bestellliste Sektionen'!G18*Preis!B$4+'Bestellliste Sektionen'!H18*Preis!B$5+'Bestellliste Sektionen'!I18*Preis!B$6+'Bestellliste Sektionen'!K18*Preis!B$7+'Bestellliste Sektionen'!L18*Preis!B$8+'Bestellliste Sektionen'!M18*Preis!B$9+'Bestellliste Sektionen'!N18*Preis!B$10+'Bestellliste Sektionen'!O18*Preis!B$11+'Bestellliste Sektionen'!P18*Preis!B$12+'Bestellliste Sektionen'!Q18*Preis!B$13+'Bestellliste Sektionen'!R18*Preis!B$14,))","v":0}]
[null,null,null,null,null,null,null,null,null,null,null,null,null,null,null,null,null,null,0,0,0,{"$f":"IF(D19>2001,F19*Preis!D$3+'Bestellliste Sektionen'!G19*Preis!D$4+'Bestellliste Sektionen'!H19*Preis!D$5+'Bestellliste Sektionen'!I19*Preis!D$6+'Bestellliste Sektionen'!K19*Preis!D$7+'Bestellliste Sektionen'!L19*Preis!D$8+'Bestellliste Sektionen'!M19*Preis!D$9+'Bestellliste Sektionen'!N19*Preis!D$10+'Bestellliste Sektionen'!O19*Preis!D$11+'Bestellliste Sektionen'!P19*Preis!D$12+'Bestellliste Sektionen'!Q19*Preis!D$13+'Bestellliste Sektionen'!R19*Preis!D$14,IF(D19<2002,F19*Preis!B$3+'Bestellliste Sektionen'!G19*Preis!B$4+'Bestellliste Sektionen'!H19*Preis!B$5+'Bestellliste Sektionen'!I19*Preis!B$6+'Bestellliste Sektionen'!K19*Preis!B$7+'Bestellliste Sektionen'!L19*Preis!B$8+'Bestellliste Sektionen'!M19*Preis!B$9+'Bestellliste Sektionen'!N19*Preis!B$10+'Bestellliste Sektionen'!O19*Preis!B$11+'Bestellliste Sektionen'!P19*Preis!B$12+'Bestellliste Sektionen'!Q19*Preis!B$13+'Bestellliste Sektionen'!R19*Preis!B$14,))","v":0}]
[null,null,null,null,null,null,null,null,null,null,null,null,null,null,null,null,null,null,0,0,0,{"$f":"IF(D20>2001,F20*Preis!D$3+'Bestellliste Sektionen'!G20*Preis!D$4+'Bestellliste Sektionen'!H20*Preis!D$5+'Bestellliste Sektionen'!I20*Preis!D$6+'Bestellliste Sektionen'!K20*Preis!D$7+'Bestellliste Sektionen'!L20*Preis!D$8+'Bestellliste Sektionen'!M20*Preis!D$9+'Bestellliste Sektionen'!N20*Preis!D$10+'Bestellliste Sektionen'!O20*Preis!D$11+'Bestellliste Sektionen'!P20*Preis!D$12+'Bestellliste Sektionen'!Q20*Preis!D$13+'Bestellliste Sektionen'!R20*Preis!D$14,IF(D20<2002,F20*Preis!B$3+'Bestellliste Sektionen'!G20*Preis!B$4+'Bestellliste Sektionen'!H20*Preis!B$5+'Bestellliste Sektionen'!I20*Preis!B$6+'Bestellliste Sektionen'!K20*Preis!B$7+'Bestellliste Sektionen'!L20*Preis!B$8+'Bestellliste Sektionen'!M20*Preis!B$9+'Bestellliste Sektionen'!N20*Preis!B$10+'Bestellliste Sektionen'!O20*Preis!B$11+'Bestellliste Sektionen'!P20*Preis!B$12+'Bestellliste Sektionen'!Q20*Preis!B$13+'Bestellliste Sektionen'!R20*Preis!B$14,))","v":0}]
[null,null,null,null,null,null,null,null,null,null,null,null,null,null,null,null,null,null,0,0,0,{"$f":"IF(D21>2001,F21*Preis!D$3+'Bestellliste Sektionen'!G21*Preis!D$4+'Bestellliste Sektionen'!H21*Preis!D$5+'Bestellliste Sektionen'!I21*Preis!D$6+'Bestellliste Sektionen'!K21*Preis!D$7+'Bestellliste Sektionen'!L21*Preis!D$8+'Bestellliste Sektionen'!M21*Preis!D$9+'Bestellliste Sektionen'!N21*Preis!D$10+'Bestellliste Sektionen'!O21*Preis!D$11+'Bestellliste Sektionen'!P21*Preis!D$12+'Bestellliste Sektionen'!Q21*Preis!D$13+'Bestellliste Sektionen'!R21*Preis!D$14,IF(D21<2002,F21*Preis!B$3+'Bestellliste Sektionen'!G21*Preis!B$4+'Bestellliste Sektionen'!H21*Preis!B$5+'Bestellliste Sektionen'!I21*Preis!B$6+'Bestellliste Sektionen'!K21*Preis!B$7+'Bestellliste Sektionen'!L21*Preis!B$8+'Bestellliste Sektionen'!M21*Preis!B$9+'Bestellliste Sektionen'!N21*Preis!B$10+'Bestellliste Sektionen'!O21*Preis!B$11+'Bestellliste Sektionen'!P21*Preis!B$12+'Bestellliste Sektionen'!Q21*Preis!B$13+'Bestellliste Sektionen'!R21*Preis!B$14,))","v":0}]
[null,null,null,null,null,null,null,null,null,null,null,null,null,null,null,null,null,null,0,0,0,{"$f":"IF(D22>2001,F22*Preis!D$3+'Bestellliste Sektionen'!G22*Preis!D$4+'Bestellliste Sektionen'!H22*Preis!D$5+'Bestellliste Sektionen'!I22*Preis!D$6+'Bestellliste Sektionen'!K22*Preis!D$7+'Bestellliste Sektionen'!L22*Preis!D$8+'Bestellliste Sektionen'!M22*Preis!D$9+'Bestellliste Sektionen'!N22*Preis!D$10+'Bestellliste Sektionen'!O22*Preis!D$11+'Bestellliste Sektionen'!P22*Preis!D$12+'Bestellliste Sektionen'!Q22*Preis!D$13+'Bestellliste Sektionen'!R22*Preis!D$14,IF(D22<2002,F22*Preis!B$3+'Bestellliste Sektionen'!G22*Preis!B$4+'Bestellliste Sektionen'!H22*Preis!B$5+'Bestellliste Sektionen'!I22*Preis!B$6+'Bestellliste Sektionen'!K22*Preis!B$7+'Bestellliste Sektionen'!L22*Preis!B$8+'Bestellliste Sektionen'!M22*Preis!B$9+'Bestellliste Sektionen'!N22*Preis!B$10+'Bestellliste Sektionen'!O22*Preis!B$11+'Bestellliste Sektionen'!P22*Preis!B$12+'Bestellliste Sektionen'!Q22*Preis!B$13+'Bestellliste Sektionen'!R22*Preis!B$14,))","v":0}]
[null,null,null,null,null,null,null,null,null,null,null,null,null,null,null,null,null,null,0,0,0,{"$f":"IF(D23>2001,F23*Preis!D$3+'Bestellliste Sektionen'!G23*Preis!D$4+'Bestellliste Sektionen'!H23*Preis!D$5+'Bestellliste Sektionen'!I23*Preis!D$6+'Bestellliste Sektionen'!K23*Preis!D$7+'Bestellliste Sektionen'!L23*Preis!D$8+'Bestellliste Sektionen'!M23*Preis!D$9+'Bestellliste Sektionen'!N23*Preis!D$10+'Bestellliste Sektionen'!O23*Preis!D$11+'Bestellliste Sektionen'!P23*Preis!D$12+'Bestellliste Sektionen'!Q23*Preis!D$13+'Bestellliste Sektionen'!R23*Preis!D$14,IF(D23<2002,F23*Preis!B$3+'Bestellliste Sektionen'!G23*Preis!B$4+'Bestellliste Sektionen'!H23*Preis!B$5+'Bestellliste Sektionen'!I23*Preis!B$6+'Bestellliste Sektionen'!K23*Preis!B$7+'Bestellliste Sektionen'!L23*Preis!B$8+'Bestellliste Sektionen'!M23*Preis!B$9+'Bestellliste Sektionen'!N23*Preis!B$10+'Bestellliste Sektionen'!O23*Preis!B$11+'Bestellliste Sektionen'!P23*Preis!B$12+'Bestellliste Sektionen'!Q23*Preis!B$13+'Bestellliste Sektionen'!R23*Preis!B$14,))","v":0}]
[null,null,null,null,null,null,null,null,null,null,null,null,null,null,null,null,null,null,0,0,0,{"$f":"IF(D24>2001,F24*Preis!D$3+'Bestellliste Sektionen'!G24*Preis!D$4+'Bestellliste Sektionen'!H24*Preis!D$5+'Bestellliste Sektionen'!I24*Preis!D$6+'Bestellliste Sektionen'!K24*Preis!D$7+'Bestellliste Sektionen'!L24*Preis!D$8+'Bestellliste Sektionen'!M24*Preis!D$9+'Bestellliste Sektionen'!N24*Preis!D$10+'Bestellliste Sektionen'!O24*Preis!D$11+'Bestellliste Sektionen'!P24*Preis!D$12+'Bestellliste Sektionen'!Q24*Preis!D$13+'Bestellliste Sektionen'!R24*Preis!D$14,IF(D24<2002,F24*Preis!B$3+'Bestellliste Sektionen'!G24*Preis!B$4+'Bestellliste Sektionen'!H24*Preis!B$5+'Bestellliste Sektionen'!I24*Preis!B$6+'Bestellliste Sektionen'!K24*Preis!B$7+'Bestellliste Sektionen'!L24*Preis!B$8+'Bestellliste Sektionen'!M24*Preis!B$9+'Bestellliste Sektionen'!N24*Preis!B$10+'Bestellliste Sektionen'!O24*Preis!B$11+'Bestellliste Sektionen'!P24*Preis!B$12+'Bestellliste Sektionen'!Q24*Preis!B$13+'Bestellliste Sektionen'!R24*Preis!B$14,))","v":0}]
[null,null,null,null,null,null,null,null,null,null,null,null,null,null,null,null,null,null,0,0,0,{"$f":"IF(D25>2001,F25*Preis!D$3+'Bestellliste Sektionen'!G25*Preis!D$4+'Bestellliste Sektionen'!H25*Preis!D$5+'Bestellliste Sektionen'!I25*Preis!D$6+'Bestellliste Sektionen'!K25*Preis!D$7+'Bestellliste Sektionen'!L25*Preis!D$8+'Bestellliste Sektionen'!M25*Preis!D$9+'Bestellliste Sektionen'!N25*Preis!D$10+'Bestellliste Sektionen'!O25*Preis!D$11+'Bestellliste Sektionen'!P25*Preis!D$12+'Bestellliste Sektionen'!Q25*Preis!D$13+'Bestellliste Sektionen'!R25*Preis!D$14,IF(D25<2002,F25*Preis!B$3+'Bestellliste Sektionen'!G25*Preis!B$4+'Bestellliste Sektionen'!H25*Preis!B$5+'Bestellliste Sektionen'!I25*Preis!B$6+'Bestellliste Sektionen'!K25*Preis!B$7+'Bestellliste Sektionen'!L25*Preis!B$8+'Bestellliste Sektionen'!M25*Preis!B$9+'Bestellliste Sektionen'!N25*Preis!B$10+'Bestellliste Sektionen'!O25*Preis!B$11+'Bestellliste Sektionen'!P25*Preis!B$12+'Bestellliste Sektionen'!Q25*Preis!B$13+'Bestellliste Sektionen'!R25*Preis!B$14,))","v":0}]
[null,null,null,null,null,null,null,null,null,null,null,null,null,null,null,null,null,null,0,0,0,{"$f":"IF(D26>2001,F26*Preis!D$3+'Bestellliste Sektionen'!G26*Preis!D$4+'Bestellliste Sektionen'!H26*Preis!D$5+'Bestellliste Sektionen'!I26*Preis!D$6+'Bestellliste Sektionen'!K26*Preis!D$7+'Bestellliste Sektionen'!L26*Preis!D$8+'Bestellliste Sektionen'!M26*Preis!D$9+'Bestellliste Sektionen'!N26*Preis!D$10+'Bestellliste Sektionen'!O26*Preis!D$11+'Bestellliste Sektionen'!P26*Preis!D$12+'Bestellliste Sektionen'!Q26*Preis!D$13+'Bestellliste Sektionen'!R26*Preis!D$14,IF(D26<2002,F26*Preis!B$3+'Bestellliste Sektionen'!G26*Preis!B$4+'Bestellliste Sektionen'!H26*Preis!B$5+'Bestellliste Sektionen'!I26*Preis!B$6+'Bestellliste Sektionen'!K26*Preis!B$7+'Bestellliste Sektionen'!L26*Preis!B$8+'Bestellliste Sektionen'!M26*Preis!B$9+'Bestellliste Sektionen'!N26*Preis!B$10+'Bestellliste Sektionen'!O26*Preis!B$11+'Bestellliste Sektionen'!P26*Preis!B$12+'Bestellliste Sektionen'!Q26*Preis!B$13+'Bestellliste Sektionen'!R26*Preis!B$14,))","v":0}]
[null,null,null,null,null,null,null,null,null,null,null,null,null,null,null,null,null,null,0,0,0,{"$f":"IF(D27>2001,F27*Preis!D$3+'Bestellliste Sektionen'!G27*Preis!D$4+'Bestellliste Sektionen'!H27*Preis!D$5+'Bestellliste Sektionen'!I27*Preis!D$6+'Bestellliste Sektionen'!K27*Preis!D$7+'Bestellliste Sektionen'!L27*Preis!D$8+'Bestellliste Sektionen'!M27*Preis!D$9+'Bestellliste Sektionen'!N27*Preis!D$10+'Bestellliste Sektionen'!O27*Preis!D$11+'Bestellliste Sektionen'!P27*Preis!D$12+'Bestellliste Sektionen'!Q27*Preis!D$13+'Bestellliste Sektionen'!R27*Preis!D$14,IF(D27<2002,F27*Preis!B$3+'Bestellliste Sektionen'!G27*Preis!B$4+'Bestellliste Sektionen'!H27*Preis!B$5+'Bestellliste Sektionen'!I27*Preis!B$6+'Bestellliste Sektionen'!K27*Preis!B$7+'Bestellliste Sektionen'!L27*Preis!B$8+'Bestellliste Sektionen'!M27*Preis!B$9+'Bestellliste Sektionen'!N27*Preis!B$10+'Bestellliste Sektionen'!O27*Preis!B$11+'Bestellliste Sektionen'!P27*Preis!B$12+'Bestellliste Sektionen'!Q27*Preis!B$13+'Bestellliste Sektionen'!R27*Preis!B$14,))","v":0}]
[null,null,null,null,null,null,null,null,null,null,null,null,null,null,null,null,null,null,0,0,0,{"$f":"IF(D28>2001,F28*Preis!D$3+'Bestellliste Sektionen'!G28*Preis!D$4+'Bestellliste Sektionen'!H28*Preis!D$5+'Bestellliste Sektionen'!I28*Preis!D$6+'Bestellliste Sektionen'!K28*Preis!D$7+'Bestellliste Sektionen'!L28*Preis!D$8+'Bestellliste Sektionen'!M28*Preis!D$9+'Bestellliste Sektionen'!N28*Preis!D$10+'Bestellliste Sektionen'!O28*Preis!D$11+'Bestellliste Sektionen'!P28*Preis!D$12+'Bestellliste Sektionen'!Q28*Preis!D$13+'Bestellliste Sektionen'!R28*Preis!D$14,IF(D28<2002,F28*Preis!B$3+'Bestellliste Sektionen'!G28*Preis!B$4+'Bestellliste Sektionen'!H28*Preis!B$5+'Bestellliste Sektionen'!I28*Preis!B$6+'Bestellliste Sektionen'!K28*Preis!B$7+'Bestellliste Sektionen'!L28*Preis!B$8+'Bestellliste Sektionen'!M28*Preis!B$9+'Bestellliste Sektionen'!N28*Preis!B$10+'Bestellliste Sektionen'!O28*Preis!B$11+'Bestellliste Sektionen'!P28*Preis!B$12+'Bestellliste Sektionen'!Q28*Preis!B$13+'Bestellliste Sektionen'!R28*Preis!B$14,))","v":0}]
[null,null,null,null,null,null,null,null,null,null,null,null,null,null,null,null,null,null,0,0,0,{"$f":"IF(D29>2001,F29*Preis!D$3+'Bestellliste Sektionen'!G29*Preis!D$4+'Bestellliste Sektionen'!H29*Preis!D$5+'Bestellliste Sektionen'!I29*Preis!D$6+'Bestellliste Sektionen'!K29*Preis!D$7+'Bestellliste Sektionen'!L29*Preis!D$8+'Bestellliste Sektionen'!M29*Preis!D$9+'Bestellliste Sektionen'!N29*Preis!D$10+'Bestellliste Sektionen'!O29*Preis!D$11+'Bestellliste Sektionen'!P29*Preis!D$12+'Bestellliste Sektionen'!Q29*Preis!D$13+'Bestellliste Sektionen'!R29*Preis!D$14,IF(D29<2002,F29*Preis!B$3+'Bestellliste Sektionen'!G29*Preis!B$4+'Bestellliste Sektionen'!H29*Preis!B$5+'Bestellliste Sektionen'!I29*Preis!B$6+'Bestellliste Sektionen'!K29*Preis!B$7+'Bestellliste Sektionen'!L29*Preis!B$8+'Bestellliste Sektionen'!M29*Preis!B$9+'Bestellliste Sektionen'!N29*Preis!B$10+'Bestellliste Sektionen'!O29*Preis!B$11+'Bestellliste Sektionen'!P29*Preis!B$12+'Bestellliste Sektionen'!Q29*Preis!B$13+'Bestellliste Sektionen'!R29*Preis!B$14,))","v":0}]
[null,null,null,null,null,null,null,null,null,null,null,null,null,null,null,null,null,null,0,0,0,{"$f":"IF(D30>2001,F30*Preis!D$3+'Bestellliste Sektionen'!G30*Preis!D$4+'Bestellliste Sektionen'!H30*Preis!D$5+'Bestellliste Sektionen'!I30*Preis!D$6+'Bestellliste Sektionen'!K30*Preis!D$7+'Bestellliste Sektionen'!L30*Preis!D$8+'Bestellliste Sektionen'!M30*Preis!D$9+'Bestellliste Sektionen'!N30*Preis!D$10+'Bestellliste Sektionen'!O30*Preis!D$11+'Bestellliste Sektionen'!P30*Preis!D$12+'Bestellliste Sektionen'!Q30*Preis!D$13+'Bestellliste Sektionen'!R30*Preis!D$14,IF(D30<2002,F30*Preis!B$3+'Bestellliste Sektionen'!G30*Preis!B$4+'Bestellliste Sektionen'!H30*Preis!B$5+'Bestellliste Sektionen'!I30*Preis!B$6+'Bestellliste Sektionen'!K30*Preis!B$7+'Bestellliste Sektionen'!L30*Preis!B$8+'Bestellliste Sektionen'!M30*Preis!B$9+'Bestellliste Sektionen'!N30*Preis!B$10+'Bestellliste Sektionen'!O30*Preis!B$11+'Bestellliste Sektionen'!P30*Preis!B$12+'Bestellliste Sektionen'!Q30*Preis!B$13+'Bestellliste Sektionen'!R30*Preis!B$14,))","v":0}]
[null,null,null,null,null,null,null,null,null,null,null,null,null,null,null,null,null,null,0,0,0,{"$f":"IF(D31>2001,F31*Preis!D$3+'Bestellliste Sektionen'!G31*Preis!D$4+'Bestellliste Sektionen'!H31*Preis!D$5+'Bestellliste Sektionen'!I31*Preis!D$6+'Bestellliste Sektionen'!K31*Preis!D$7+'Bestellliste Sektionen'!L31*Preis!D$8+'Bestellliste Sektionen'!M31*Preis!D$9+'Bestellliste Sektionen'!N31*Preis!D$10+'Bestellliste Sektionen'!O31*Preis!D$11+'Bestellliste Sektionen'!P31*Preis!D$12+'Bestellliste Sektionen'!Q31*Preis!D$13+'Bestellliste Sektionen'!R31*Preis!D$14,IF(D31<2002,F31*Preis!B$3+'Bestellliste Sektionen'!G31*Preis!B$4+'Bestellliste Sektionen'!H31*Preis!B$5+'Bestellliste Sektionen'!I31*Preis!B$6+'Bestellliste Sektionen'!K31*Preis!B$7+'Bestellliste Sektionen'!L31*Preis!B$8+'Bestellliste Sektionen'!M31*Preis!B$9+'Bestellliste Sektionen'!N31*Preis!B$10+'Bestellliste Sektionen'!O31*Preis!B$11+'Bestellliste Sektionen'!P31*Preis!B$12+'Bestellliste Sektionen'!Q31*Preis!B$13+'Bestellliste Sektionen'!R31*Preis!B$14,))","v":0}]
[]
["Weitere Formulare ",null,"BKAV Homepage / Sektionen / Buchegg 30m",null,null,null,null,null,null,null,null,"Anmeldung an:",null,null,null,"gurtner.roland@outlook.com",null,null,null,null,null,"Roland Gurtner Hauptstrasse 54, 3254 Messen  079 627 75 25"]

{"sheet":"Preis","index":1,"n_rows":14,"n_cols":4,"rows_kept":14,"cut":false,"hidden":false,"merged":[]}
[]
[null,"Elite",null,"NAWU"]
["Standblatt",8,null,0]
["Kehr",3,null,3]
["Sektion",8,null,4]
["Gruppe",8,null,4]
["Auszahlung",8,null,4]
["Kranz",8,null,4]
["Kranz ND",6,null,3]
["Nachwuchs",0,null,6]
["Veteranen",8,null,0]
["Nachdoppel",2.5,null,2.5]
["Buechibärger Stich"]
["Final Verbandsmeister",11,null,11]